fUSD/lending_fUSD_20251225
["ID","MTS","AMOUNT","RATE_DAILY","PERIOD"]
[399699979,1766627454068,-500.0,0.00026187,2]
[399699980,1766627454079,-215.0738,0.00026187,2]
[399699981,1766627454089,-500.0,0.00026187,2]
[399699982,1766627454100,-500.0,0.00026187,2]
[399699983,1766627454111,-223.0315306,0.00026187,2]
[399699984,1766627454122,-250.0,0.00026187,2]
[399699985,1766627454133,-500.0,0.00026187,2]
[399699986,1766627454143,-500.0,0.00026187,2]
[399699987,1766627454157,-231.28369723,0.00026187,2]
[399699988,1766627454168,-250.0,0.00026187,2]
[399699989,1766627454178,-500.0,0.00026187,2]
[399699990,1766627454189,-500.0,0.00026187,2]
[399699991,1766627454200,-239.84119403,0.00026187,2]
[399699992,1766627454212,-500.0,0.00026187,2]
[399699993,1766627454222,-250.0,0.00026187,2]
[399699994,1766627454233,-209.40437684,0.00026187,2]
[399699995,1766627454244,-500.0,0.00026187,2]
[399699996,1766627454255,-248.71531821,0.00026187,2]
[399699997,1766627454266,-500.0,0.00026187,2]
[399699998,1766627454276,-500.0,0.00026187,2]
[399699999,1766627454287,-257.91778498,0.00026187,2]
[399700000,1766627454298,-500.0,0.00026187,2]
[399700001,1766627454309,-267.46074303,0.00026187,2]
[399700002,1766627454320,-500.0,0.00026187,2]
[399700003,1766627454330,-277.35679052,0.00026187,2]
[399700004,1766627454341,-500.0,0.00026187,2]
[399700005,1766627454351,-500.0,0.00026187,2]
[399700006,1766627454365,-200.92971478,0.00026187,2]
[399700007,1766627454375,-151.0,0.00026187,2]
[399700008,1766627454386,-250.0,0.00026187,2]
[399700009,1766627454395,-250.0,0.00026187,2]
[399700010,1766627455012,-250.0,0.00026187,2]
[399700011,1766627455051,-250.0,0.00026187,2]
[399700012,1766627455089,-250.0,0.00026187,2]
[399700013,1766627455101,-250.0,0.00026187,2]
[399700014,1766627455112,-250.0,0.00026187,2]
[399700015,1766627455122,-250.0,0.00026187,2]
[399700016,1766627455132,-250.0,0.00026187,2]
[399700017,1766627455142,-578.20924308,0.00026187,2]
[399700018,1766627455152,-500.0,0.00026187,2]
[399700019,1766627455163,-250.0,0.00026187,2]
[399700020,1766627455173,-250.0,0.00026187,2]
[399700021,1766627455183,-500.0,0.00026187,2]
[399700022,1766627455192,-250.0,0.00026187,2]
[399700023,1766627455202,-250.0,0.00026187,2]
[399700024,1766627455212,-500.0,0.00026187,2]
[399700025,1766627455223,-250.0,0.00026187,2]
[399700026,1766627455233,-500.0,0.00026187,2]
[399700027,1766627455243,-250.0,0.00026187,2]
[399700028,1766627455254,-500.0,0.00026187,2]
[399700029,1766627455271,-250.0,0.00026187,2]
[399700030,1766627455282,-500.0,0.00026187,2]
[399700031,1766627455293,-250.0,0.00026187,2]
[399700032,1766627455303,-500.0,0.00026187,2]
[399700033,1766627455313,-250.0,0.00026187,2]
[399700034,1766627455324,-500.0,0.00026187,2]
[399700035,1766627455334,-620.0,0.00026187,2]
[399700036,1766627455344,-250.0,0.00026187,2]
[399700037,1766627455354,-500.0,0.00026187,2]
[399700038,1766627455364,-250.0,0.00026187,2]
[399700039,1766627455374,-500.0,0.00026187,2]
[399700040,1766627455385,-500.0,0.00026187,2]
[399700041,1766627455395,-250.0,0.00026187,2]
[399700042,1766627455404,-250.0,0.00026187,2]
[399700043,1766627455414,-151.0,0.00026187,2]
[399700044,1766627455424,-248.71531821,0.00026212,2]
[399700045,1766627455435,-556.55,0.00026218,2]
[399700046,1766627455445,-856.11,0.00026244,30]
[399700047,1766627455455,-27342.53075427,0.000264,2]
[399700048,1766627455466,-556.55,0.00026492,2]
[399700049,1766627455477,-8001.0,0.00026614,2]
[399700050,1766627455488,-1000.0,0.00026676,2]
[399700051,1766627455498,-595.37131296,0.00026735,2]
[399700052,1766627455508,-217.15233878,0.00026735,2]
[399700053,1766627455518,-151.0,0.00026735,2]
[399700054,1766627455530,-151.0,0.00026735,2]
[399700055,1766627455540,-556.55,0.00026766,2]
[399700056,1766627455551,-2000.0,0.000268,2]
[399700057,1766627455562,-150.0,0.00026921,2]
[399700058,1766627455572,-150.0,0.00026921,2]
[399700059,1766627455582,-150.0,0.00026921,2]
[399700060,1766627455592,-150.0,0.00026921,2]
[399700061,1766627455602,-150.0,0.00026921,2]
[399700062,1766627455612,-150.0,0.00026921,2]
[399700063,1766627455622,-288.717,0.00026921,2]
[399700064,1766627455637,-500.0,0.00027,2]
[399700065,1766627455647,-212.02209354,0.0002703,2]
[399700066,1766627455657,-229.81,0.0002704,2]
[399700067,1766627455669,-3459.0,0.00027087,2]
[399700068,1766627455680,-612.0,0.00027087,2]
[399700069,1766627455691,-1327.0,0.00027087,2]
[399700070,1766627455702,-1610.0,0.00027087,2]
[399700071,1766627455712,-432.0,0.00027087,2]
[399700072,1766627455722,-1263.0,0.00027087,2]
[399700073,1766627455732,-150.0,0.00027087,2]
[399700074,1766627455742,-6534.0,0.00027087,2]
[399700075,1766627455752,-4807.0,0.00027087,2]
[399700076,1766627455763,-564.0,0.00027087,2]
[399700077,1766627455773,-151.55467164,0.00027105,2]
[399700078,1766627455783,-1098.0,0.00027123,2]
[399700079,1766627455794,-3666.24,0.00027123,2]
[399700080,1766627455804,-617.40005154,0.00027283,2]
[399700081,1766627455814,-225.18697532,0.00027283,2]
[399700082,1766627455824,-151.0,0.00027283,2]
[399700083,1766627455835,-151.0,0.00027283,2]
[399700084,1766627455847,-150.0,0.00027369,2]
[399700085,1766627455858,-4089.34865562,0.0002739,2]
[399700086,1766627455868,-8078.46780557,0.0002739,2]
[399700087,1766627455878,-151.0,0.00027397,2]
[399700088,1766627455888,-6341.0,0.00027397,120]
[399700089,1766627455899,-300.0,0.00027397,2]
[399700090,1766627455910,-876.42,0.00027397,16]
[399700091,1766627455921,-558.31,0.00027397,2]
[399700092,1766627455935,-150.0,0.00027397,5]
[399700093,1766627455945,-550.01210834,0.00027397,5]
[399700094,1766627455956,-200.09993573,0.000275,2]
[399700095,1766627455967,-546.62751736,0.000275,2]
[399700096,1766627455979,-162.16,0.00027513,2]
[399700097,1766627455990,-334.5472959,0.00027556,2]
[399700098,1766627456007,-287.61899177,0.00027556,2]
[399700099,1766627456017,-642.94,0.00027556,2]
[399700100,1766627456028,-13127.5,0.00027709,2]
[399700101,1766627456038,-113574.54,0.000278,7]
[399700102,1766627456049,-640.24385345,0.00027831,2]
[399700103,1766627456060,-233.51889341,0.00027831,2]
[399700104,1766627456071,-160.10926626,0.00027831,2]
[399700105,1766627456082,-217.78796196,0.00027831,2]
[399700106,1766627456092,-191.62140676,0.000279,2]
[399700107,1766627456103,-676.65137989,0.00027904,2]
[399700108,1766627456114,-250.0,0.00027945,5]
[399700109,1766627456124,-70957.91863836,0.00028,2]
[399700110,1766627456135,-50598.41821355,0.00028,2]
[399700111,1766627456146,-5252.86571329,0.00028,60]
[399700112,1766627456156,-151.0,0.00028,7]
[399700113,1766627456167,-151.0,0.00028,7]
[399700114,1766627456177,-160.069131,0.00028,7]
[399700115,1766627456187,-160.069131,0.00028,7]
[399700116,1766627456197,-160.069131,0.00028,7]
[399700117,1766627456207,-160.069131,0.00028,7]
[399700118,1766627456217,-274.093218,0.00028,7]
[399700119,1766627456227,-274.093218,0.00028,7]
[399700120,1766627456238,-274.093218,0.00028,7]
[399700121,1766627456249,-274.093218,0.00028,7]
[399700122,1766627456259,-151.0,0.00028,7]
[399700123,1766627456270,-151.0,0.00028,7]
[399700124,1766627456280,-151.0,0.00028,7]
[399700125,1766627456290,-164.890842,0.00028,2]
[399700126,1766627456300,-164.890842,0.00028,2]
[399700127,1766627456309,-164.890842,0.00028,2]
[399700128,1766627456320,-164.890842,0.00028,2]
[399700129,1766627456330,-151.0,0.00028,7]
[399700130,1766627456341,-151.0,0.00028,7]
[399700131,1766627456351,-151.0,0.00028,7]
[399700132,1766627456365,-151.0,0.00028,7]
[399700133,1766627456375,-151.0,0.00028,7]
[399700134,1766627456385,-151.0,0.00028,7]
[399700135,1766627456396,-151.0,0.00028,7]
[399700136,1766627456407,-197.715346,0.00028,7]
[399700137,1766627456418,-197.715346,0.00028,7]
[399700138,1766627456428,-197.715346,0.00028,7]
[399700139,1766627456438,-197.715346,0.00028,7]
[399700140,1766627456448,-191.603546,0.00028,7]
[399700141,1766627456458,-151.0,0.00028,7]
[399700142,1766627456473,-413.835856,0.00028,7]
[399700143,1766627456493,-413.835856,0.00028,7]
[399700144,1766627456504,-413.835856,0.00028,7]
[399700145,1766627456514,-413.835856,0.00028,7]
[399700146,1766627456525,-151.0,0.00028,7]
[399700147,1766627456536,-151.0,0.00028,7]
[399700148,1766627456546,-151.0,0.00028,7]
[399700149,1766627456556,-197.064007,0.00028,7]
[399700150,1766627456569,-663.93287602,0.00028379,2]
[399700151,1766627456580,-242.15909246,0.00028379,2]
[399700152,1766627456591,-1000.0,0.00028463,2]
[399700153,1766627456601,-1098.0,0.00028479,5]
[399700154,1766627456612,-500.0,0.00028492,30]
[399700155,1766627456623,-165.25,0.00028493,2]
[399700156,1766627456634,-350.75848956,0.00028493,5]
[399700157,1766627456644,-151.55467164,0.00028699,2]
[399700158,1766627456654,-151.0,0.00028766,2]
[399700159,1766627456664,-500.0,0.00028822,2]
[399700160,1766627456674,-346.92554585,0.00028925,2]
[399700161,1766627456684,-298.26089446,0.00028925,2]
[399700162,1766627456694,-666.72878,0.00028925,2]
[399700163,1766627456704,-599.60298507,0.00028926,2]
[399700164,1766627456714,-688.49839244,0.00028927,2]
[399700165,1766627456725,-251.11897888,0.00028927,2]
[399700166,1766627456735,-257.91778498,0.00028951,2]
[399700167,1766627456746,-550.0,0.00029,2]
[399700168,1766627456756,-713.97283296,0.00029475,2]
[399700169,1766627456766,-260.4103811,0.00029475,2]
[399700170,1766627456777,-46915.52888196,0.000295,120]
[399700171,1766627456787,-13127.5,0.0002959,2]
[399700172,1766627456797,-301.0,0.00029783,10]
[399700173,1766627456807,-507.98,0.000298,30]
[399700174,1766627456818,-9560.0,0.00029833,5]
[399700175,1766627456828,-1098.0,0.00029903,5]
[399700176,1766627456839,-250.0,0.0003,30]
[399700177,1766627456849,-218.59,0.0003,7]
[399700178,1766627456859,-554.80570933,0.0003,30]
[399700179,1766627456870,-162.16,0.00030014,2]
[399700180,1766627456880,-740.38982778,0.00030023,2]
[399700181,1766627456890,-270.0455652,0.00030023,2]
[399700182,1766627456901,-3459.0,0.00030087,2]
[399700183,1766627456911,-612.0,0.00030087,2]
[399700184,1766627456923,-1327.0,0.00030087,2]
[399700185,1766627456935,-1610.0,0.00030087,2]
[399700186,1766627456946,-432.0,0.00030087,2]
[399700187,1766627456968,-1263.0,0.00030087,2]
[399700188,1766627456980,-150.0,0.00030087,2]
[399700189,1766627456990,-6534.0,0.00030087,2]
[399700190,1766627457000,-4807.0,0.00030087,2]
[399700191,1766627457011,-690.12276909,0.00030105,2]
[399700192,1766627457022,-151.0,0.00030135,2]
[399700193,1766627457033,-558.31,0.00030137,2]
[399700194,1766627457043,-384.19505308,0.00030223,2]
[399700195,1766627457054,-151.55467164,0.00030293,2]
[399700196,1766627457064,-359.76179104,0.00030294,2]
[399700197,1766627457074,-309.29654756,0.00030294,2]
[399700198,1766627457085,-691.39774486,0.00030294,2]
[399700199,1766627457096,-305.0,0.000303,2]
[399700200,1766627457107,-200.0,0.000303,2]
[399700201,1766627457117,-901.0,0.000303,2]
[399700202,1766627457127,-976.0,0.000303,2]
[399700203,1766627457138,-360.36,0.000304,30]
[399700204,1766627457149,-2000.0,0.000305,2]
[399700205,1766627457160,-856.11,0.0003057,30]
[399700206,1766627457171,-767.7842514,0.00030571,2]
[399700207,1766627457182,-280.03725112,0.00030571,2]
[399700208,1766627457192,-398.79830919,0.00030839,2]
[399700209,1766627457203,-2597.56135515,0.0003084,2]
[399700210,1766627457215,-300.0,0.00030949,10]
[399700211,1766627457225,-78567.27691245,0.0003095,2]
[399700212,1766627457235,-600.0,0.00031,2]
[399700213,1766627457246,-796.19226871,0.00031119,2]
[399700214,1766627457258,-290.39862941,0.00031119,2]
[399700215,1766627457268,-251.59923132,0.0003135,2]
[399700216,1766627457279,-1098.0,0.00031398,5]
[399700217,1766627457289,-158.97117965,0.000314,30]
[399700218,1766627457300,-300.0,0.00031429,10]
[399700219,1766627457316,-19589.39250759,0.0003143,4]
[399700220,1766627457326,-13127.5,0.00031472,2]
[399700221,1766627457338,-300.0,0.00031491,10]
[399700222,1766627457350,-196.24294003,0.000315,2]
[399700223,1766627457359,-150.0,0.000315,2]
[399700224,1766627457371,-151.0,0.00031504,2]
[399700225,1766627457382,-156.02,0.00031507,120]
[399700226,1766627457393,-373.07297731,0.00031663,2]
[399700227,1766627457404,-320.74051982,0.00031663,2]
[399700228,1766627457415,-726.5677628,0.00031663,2]
[399700229,1766627457426,-621.78829552,0.00031665,2]
[399700230,1766627457438,-825.65138265,0.00031667,2]
[399700231,1766627457449,-193.58897544,0.00031667,2]
[399700232,1766627457459,-265.36704685,0.0003169,2]
[399700233,1766627457470,-162.0,0.00031781,3]
[399700234,1766627457481,-151.55467164,0.00031888,2]
[399700235,1766627457491,-161.4002369,0.00032,30]
[399700236,1766627457502,-356.14236199,0.00032,30]
[399700237,1766627457513,-152.85517104,0.0003216,2]
[399700238,1766627457523,-889.18421964,0.000323,2]
[399700239,1766627457534,-162.0,0.00032421,11]
[399700240,1766627457545,-162.16,0.00032515,2]
[399700241,1766627457556,-1061.02056111,0.00032733,7]
[399700242,1766627457567,-4801.24965605,0.000328,2]
[399700243,1766627457578,-166.0,0.000328,120]
[399700244,1766627457589,-166.0,0.000328,120]
[399700245,1766627457600,-1015.81,0.000328,14]
[399700246,1766627457611,-151.0,0.00032873,14]
[399700247,1766627457623,-222.68465641,0.00032873,2]
[399700248,1766627457634,-300.0,0.00032875,10]
[399700249,1766627457645,-500.0,0.00032876,120]
[399700250,1766627457655,-500.0,0.00032876,120]
[399700251,1766627457666,-500.0,0.00032876,120]
[399700252,1766627457676,-500.0,0.00032876,120]
[399700253,1766627457686,-152.49249459,0.00032876,120]
[399700254,1766627457696,-1000.0,0.00032876,2]
[399700255,1766627457707,-1000.0,0.00032876,2]
[399700256,1766627457717,-1000.0,0.00032876,2]
[399700257,1766627457727,-1000.0,0.00032876,2]
[399700258,1766627457738,-1000.0,0.00032876,2]
[399700259,1766627457748,-1000.0,0.00032876,2]
[399700260,1766627457758,-1000.0,0.00032876,2]
[399700261,1766627457769,-462.03058458,0.00032876,2]
[399700262,1766627457780,-500.0,0.00032876,2]
[399700263,1766627457792,-500.0,0.00032876,2]
[399700264,1766627457802,-500.0,0.00032876,2]
[399700265,1766627457813,-500.0,0.00032876,2]
[399700266,1766627457823,-500.0,0.00032876,2]
[399700267,1766627457834,-500.0,0.00032876,2]
[399700268,1766627457845,-500.0,0.00032876,2]
[399700269,1766627457855,-500.0,0.00032876,2]
[399700270,1766627457866,-500.0,0.00032876,2]
[399700271,1766627457876,-500.0,0.00032876,2]
[399700272,1766627457887,-500.0,0.00032876,2]
[399700273,1766627457897,-500.0,0.00032876,2]
[399700274,1766627457907,-421.28583254,0.00032876,2]
[399700275,1766627457918,-500.0,0.00032876,45]
[399700276,1766627457932,-500.0,0.00032876,45]
[399700277,1766627457943,-500.0,0.00032876,45]
[399700278,1766627457954,-500.0,0.00032876,45]
[399700279,1766627457965,-500.0,0.00032876,45]
[399700280,1766627457976,-500.0,0.00032876,45]
[399700281,1766627457986,-500.0,0.00032876,45]
[399700282,1766627457996,-500.0,0.00032876,45]
[399700283,1766627458009,-500.0,0.00032876,45]
[399700284,1766627458020,-500.0,0.00032876,45]
[399700285,1766627458030,-500.0,0.00032876,45]
[399700286,1766627458041,-569.86677185,0.00032876,45]
[399700287,1766627458052,-500.0,0.00032876,2]
[399700288,1766627458062,-500.0,0.00032876,2]
[399700289,1766627458073,-500.0,0.00032876,2]
[399700290,1766627458084,-500.0,0.00032876,2]
[399700291,1766627458096,-500.0,0.00032876,2]
[399700292,1766627458107,-500.0,0.00032876,2]
[399700293,1766627458118,-500.0,0.00032876,2]
[399700294,1766627458129,-500.0,0.00032876,2]
[399700295,1766627458139,-500.0,0.00032876,2]
[399700296,1766627458151,-500.0,0.00032876,2]
[399700297,1766627458161,-500.0,0.00032876,2]
[399700298,1766627458173,-500.0,0.00032876,2]
[399700299,1766627458183,-349.78309726,0.00032876,2]
[399700300,1766627458194,-1354.83,0.00032876,2]
[399700301,1766627458206,-1354.83,0.00032876,2]
[399700302,1766627458216,-1354.83,0.00032876,2]
[399700303,1766627458227,-1354.83,0.00032876,2]
[399700304,1766627458238,-1354.83,0.00032876,2]
[399700305,1766627458249,-1354.83,0.00032876,2]
[399700306,1766627458261,-1354.83,0.00032876,2]
[399700307,1766627458271,-1354.83,0.00032876,2]
[399700308,1766627458282,-1354.83,0.00032876,2]
[399700309,1766627458294,-1354.83,0.00032876,2]
[399700310,1766627458305,-1354.83,0.00032876,2]
[399700311,1766627458315,-1354.83,0.00032876,2]
[399700312,1766627458327,-1354.83,0.00032876,2]
[399700313,1766627458338,-1354.83,0.00032876,2]
[399700314,1766627458348,-1354.83,0.00032876,2]
[399700315,1766627458358,-1354.83,0.00032876,2]
[399700316,1766627458369,-1354.83,0.00032876,2]
[399700317,1766627458379,-1354.83,0.00032876,2]
[399700318,1766627458390,-1354.83,0.00032876,2]
[399700319,1766627458402,-1354.83,0.00032876,2]
[399700320,1766627458412,-1354.83,0.00032876,2]
[399700321,1766627458423,-1354.83,0.00032876,2]
[399700322,1766627458434,-1354.83,0.00032876,2]
[399700323,1766627458445,-1355.04447144,0.00032876,2]
[399700324,1766627458457,-560.64557288,0.00032876,2]
[399700325,1766627458468,-299.93840988,0.00032876,2]
[399700326,1766627458482,-500.04075253,0.00032876,2]
[399700327,1766627458494,-500.0,0.00032876,2]
[399700328,1766627458505,-500.0,0.00032876,2]
[399700329,1766627458516,-500.0,0.00032876,2]
[399700330,1766627458527,-500.0,0.00032876,2]
[399700331,1766627458539,-500.0,0.00032876,2]
[399700332,1766627458551,-500.0,0.00032876,2]
[399700333,1766627458562,-510.82728389,0.00032876,2]
[399700334,1766627458573,-558.66,0.00032876,2]
[399700335,1766627458585,-558.66,0.00032876,2]
[399700336,1766627458597,-558.66,0.00032876,2]
[399700337,1766627458608,-558.66,0.00032876,2]
[399700338,1766627458619,-558.66,0.00032876,2]
[399700339,1766627458630,-558.66,0.00032876,2]
[399700340,1766627458641,-558.66,0.00032876,2]
[399700341,1766627458651,-558.66,0.00032876,2]
[399700342,1766627458662,-558.66,0.00032876,2]
[399700343,1766627458672,-558.66,0.00032876,2]
[399700344,1766627458682,-558.66,0.00032876,2]
[399700345,1766627458693,-558.66,0.00032876,2]
[399700346,1766627458704,-558.66,0.00032876,2]
[399700347,1766627458715,-558.66,0.00032876,2]
[399700348,1766627458725,-558.66,0.00032876,2]
[399700349,1766627458735,-558.66,0.00032876,2]
[399700350,1766627458746,-558.66,0.00032876,2]
[399700351,1766627458757,-558.66,0.00032876,2]
[399700352,1766627458769,-558.66,0.00032876,2]
[399700353,1766627458780,-558.66,0.00032876,2]
[399700354,1766627458791,-558.66,0.00032876,2]
[399700355,1766627458802,-558.66,0.00032876,2]
[399700356,1766627458813,-558.66,0.00032876,2]
[399700357,1766627458824,-558.81322654,0.00032876,2]
[399700358,1766627458836,-500.0,0.00032876,2]
[399700359,1766627458847,-500.0,0.00032876,2]
[399700360,1766627458857,-500.0,0.00032876,2]
[399700361,1766627458869,-500.0,0.00032876,2]
[399700362,1766627458879,-500.0,0.00032876,2]
[399700363,1766627458890,-500.0,0.00032876,2]
[399700364,1766627458901,-500.0,0.00032876,2]
[399700365,1766627458912,-500.0,0.00032876,2]
[399700366,1766627458923,-500.0,0.00032876,2]
[399700367,1766627458938,-500.0,0.00032876,2]
[399700368,1766627458949,-500.0,0.00032876,2]
[399700369,1766627458960,-500.0,0.00032876,2]
[399700370,1766627458972,-500.0,0.00032876,2]
[399700371,1766627458984,-357.42705543,0.00032876,2]
[399700372,1766627458996,-421.39,0.00032876,2]
[399700373,1766627459006,-421.39,0.00032876,2]
[399700374,1766627459017,-421.39,0.00032876,2]
[399700375,1766627459028,-421.39,0.00032876,2]
[399700376,1766627459039,-421.39,0.00032876,2]
[399700377,1766627459050,-421.39,0.00032876,2]
[399700378,1766627459061,-421.39,0.00032876,2]
[399700379,1766627459071,-421.39,0.00032876,2]
[399700380,1766627459082,-421.39,0.00032876,2]
[399700381,1766627459093,-421.39,0.00032876,2]
[399700382,1766627459104,-421.39,0.00032876,2]
[399700383,1766627459363,-421.39,0.00032876,2]
[399700384,1766627459391,-421.39,0.00032876,2]
[399700385,1766627459404,-421.39,0.00032876,2]
[399700386,1766627459415,-421.39,0.00032876,2]
[399700387,1766627459426,-421.39,0.00032876,2]
[399700388,1766627459438,-421.39,0.00032876,2]
[399700389,1766627459450,-421.39,0.00032876,2]
[399700390,1766627459460,-421.39,0.00032876,2]
[399700391,1766627459470,-421.39,0.00032876,2]
[399700392,1766627459480,-421.39,0.00032876,2]
[399700393,1766627459490,-421.39,0.00032876,2]
[399700394,1766627459501,-421.39,0.00032876,2]
[399700395,1766627459511,-421.60829713,0.00032876,2]
[399700396,1766627459522,-500.0,0.00032876,2]
[399700397,1766627459532,-500.0,0.00032876,2]
[399700398,1766627459543,-500.0,0.00032876,2]
[399700399,1766627459553,-500.0,0.00032876,2]
[399700400,1766627459563,-500.0,0.00032876,2]
[399700401,1766627459575,-500.0,0.00032876,2]
[399700402,1766627459586,-500.0,0.00032876,2]
[399700403,1766627459596,-500.0,0.00032876,2]
[399700404,1766627459606,-500.0,0.00032876,2]
[399700405,1766627459616,-500.0,0.00032876,2]
[399700406,1766627459627,-500.0,0.00032876,2]
[399700407,1766627459636,-500.0,0.00032876,2]
[399700408,1766627459646,-500.0,0.00032876,2]
[399700409,1766627459656,-500.0,0.00032876,2]
[399700410,1766627459666,-500.0,0.00032876,2]
[399700411,1766627459676,-500.0,0.00032876,2]
[399700412,1766627459687,-500.0,0.00032876,2]
[399700413,1766627459697,-615.10365063,0.00032876,2]
[399700414,1766627459707,-500.0,0.00032876,2]
[399700415,1766627459717,-500.0,0.00032876,2]
[399700416,1766627459727,-500.0,0.00032876,2]
[399700417,1766627459737,-500.0,0.00032876,2]
[399700418,1766627459747,-500.0,0.00032876,2]
[399700419,1766627459758,-500.73132188,0.00032876,2]
[399700420,1766627459769,-361.9717707,0.00032876,2]
[399700421,1766627459779,-352.37,0.00032876,2]
[399700422,1766627459789,-352.37,0.00032876,2]
[399700423,1766627459799,-352.37,0.00032876,2]
[399700424,1766627459808,-352.37,0.00032876,2]
[399700425,1766627459821,-352.37,0.00032876,2]
[399700426,1766627459831,-352.37,0.00032876,2]
[399700427,1766627459841,-352.37,0.00032876,2]
[399700428,1766627459850,-352.37,0.00032876,2]
[399700429,1766627459861,-352.37,0.00032876,2]
[399700430,1766627459870,-352.37,0.00032876,2]
[399700431,1766627459880,-352.37,0.00032876,2]
[399700432,1766627459891,-352.37,0.00032876,2]
[399700433,1766627459901,-352.37,0.00032876,2]
[399700434,1766627459910,-352.37,0.00032876,2]
[399700435,1766627459922,-352.37,0.00032876,2]
[399700436,1766627459935,-352.37,0.00032876,2]
[399700437,1766627459944,-352.37,0.00032876,2]
[399700438,1766627459955,-352.37,0.00032876,2]
[399700439,1766627459968,-352.37,0.00032876,2]
[399700440,1766627459978,-352.37,0.00032876,2]
[399700441,1766627459988,-352.37,0.00032876,2]
[399700442,1766627459999,-352.37,0.00032876,2]
[399700443,1766627460009,-352.37,0.00032876,2]
[399700444,1766627460019,-352.45415912,0.00032876,2]
[399700445,1766627460030,-151.0,0.00032877,31]
[399700446,1766627460041,-151.0,0.00032877,31]
[399700447,1766627460052,-151.0,0.00032877,31]
[399700448,1766627460064,-151.0,0.00032877,31]
[399700449,1766627460075,-151.0,0.00032877,31]
[399700450,1766627460086,-155.855057,0.00032877,31]
[399700451,1766627460097,-185.643047,0.00032877,31]
[399700452,1766627460107,-151.0,0.00032877,31]
[399700453,1766627460117,-151.0,0.00032877,31]
[399700454,1766627460127,-151.0,0.00032877,30]
[399700455,1766627460138,-171.214087,0.00032877,31]
[399700456,1766627460149,-164.195584,0.00032877,31]
[399700457,1766627460158,-151.0,0.00032877,30]
[399700458,1766627460170,-151.0,0.00032877,31]
[399700459,1766627460180,-151.0,0.00032877,31]
[399700460,1766627460189,-151.0,0.00032877,31]
[399700461,1766627460199,-152.593325,0.00032877,31]
[399700462,1766627460209,-151.0,0.00032877,31]
[399700463,1766627460219,-151.0,0.00032877,31]
[399700464,1766627460229,-151.0,0.00032877,31]
[399700465,1766627460240,-151.0,0.00032877,31]
[399700466,1766627460250,-151.0,0.00032877,31]
[399700467,1766627460261,-151.0,0.00032877,31]
[399700468,1766627460271,-151.0,0.00032877,31]
[399700469,1766627460281,-283.553704,0.00032877,31]
[399700470,1766627460293,-151.0,0.00032877,31]
[399700471,1766627460303,-151.0,0.00032877,31]
[399700472,1766627460314,-151.0,0.00032877,31]
[399700473,1766627460323,-151.0,0.00032877,31]
[399700474,1766627460334,-151.0,0.00032877,31]
[399700475,1766627460344,-151.0,0.00032877,31]
[399700476,1766627460355,-151.0,0.00032877,31]
[399700477,1766627460365,-154.136259,0.00032877,31]
[399700478,1766627460375,-151.0,0.00032877,31]